[Event "Titled Tuesday Blitz March 14 Early 2023"]
[White "Kalajzic, Ivan"]
[Black "TimGrutter03"]
[WhiteFideId "14506378"]
[WhiteElo "2203"]
[BlackElo "2479"]
[Result "0-1"]
[Round "08"]
[TimeControl "180+2"]
[Date "2023.03.14"]
[WhiteClock "0:00:02"]
[BlackClock "0:00:06"]

1. b3 {[%clk 0:03:00]}  g6 {[%clk 0:02:58]} 2. Bb2 {[%clk 0:03:00]}  Nf6 {[%clk 0:02:57]} 3. Bxf6 {[%clk 0:03:00]}  exf6 {[%clk 0:02:56]} 4. c4 {[%clk 0:03:00]}  d5 {[%clk 0:02:55]} 5. cxd5 {[%clk 0:02:59]}  Qxd5 {[%clk 0:02:55]} 6. Nc3 {[%clk 0:03:00]}  Qa5 {[%clk 0:02:54]} 7. a3 {[%clk 0:03:00]}  c6 {[%clk 0:02:51]} 8. e3 {[%clk 0:02:51]}  Bg7 {[%clk 0:02:46]} 9. b4 {[%clk 0:02:44]}  Qd8 {[%clk 0:02:45]} 10. d4 {[%clk 0:02:44]}  O-O {[%clk 0:02:40]} 11. Bc4 {[%clk 0:02:43]}  Nd7 {[%clk 0:02:35]} 12. Nge2 {[%clk 0:02:43]}  Nb6 {[%clk 0:02:31]} 13. Bb3 {[%clk 0:02:40]}  a5 {[%clk 0:02:29]} 14. O-O {[%clk 0:02:35]}  Qe7 {[%clk 0:02:12]} 15. b5 {[%clk 0:02:17]}  cxb5 {[%clk 0:02:05]} 16. Nxb5 {[%clk 0:02:15]}  Bd7 {[%clk 0:01:59]} 17. Nc7 {[%clk 0:01:59]}  Rac8 {[%clk 0:01:52]} 18. Nd5 {[%clk 0:01:59]}  Nxd5 {[%clk 0:01:51]} 19. Bxd5 {[%clk 0:02:00]}  Bb5 {[%clk 0:01:45]} 20. Qd2 {[%clk 0:01:50]}  Qd7 {[%clk 0:01:18]} 21. Bf3 {[%clk 0:01:42]}  b6 {[%clk 0:01:13]} 22. Rfc1 {[%clk 0:01:41]}  Rxc1+ {[%clk 0:01:11]} 23. Rxc1 {[%clk 0:01:38]}  Rc8 {[%clk 0:01:11]} 24. Nc3 {[%clk 0:01:25]}  Bf8 {[%clk 0:01:03]} 25. Nd5 {[%clk 0:01:10]}  Rxc1+ {[%clk 0:01:03]} 26. Qxc1 {[%clk 0:01:10]}  Qd6 {[%clk 0:00:56]} 27. Nc3 {[%clk 0:00:34]}  Bc6 {[%clk 0:00:41]} 28. a4 {[%clk 0:00:15]}  f5 {[%clk 0:00:32]} 29. Nb5 {[%clk 0:00:11]}  Bxb5 {[%clk 0:00:29]} 30. axb5 {[%clk 0:00:08]}  a4 {[%clk 0:00:29]} 31. Qc4 {[%clk 0:00:07]}  a3 {[%clk 0:00:16]} 32. Bd5 {[%clk 0:00:07]}  Qe7 {[%clk 0:00:17]} 33. g3 {[%clk 0:00:07]}  Kg7 {[%clk 0:00:15]} 34. Kg2 {[%clk 0:00:07]}  Qa7 {[%clk 0:00:15]} 35. h4 {[%clk 0:00:07]}  Be7 {[%clk 0:00:15]} 36. Kf3 {[%clk 0:00:07]}  Bf6 {[%clk 0:00:13]} 37. Kg2 {[%clk 0:00:06]}  h5 {[%clk 0:00:12]} 38. Kf3 {[%clk 0:00:07]}  Qa5 {[%clk 0:00:12]} 39. Kg2 {[%clk 0:00:06]}  Be7 {[%clk 0:00:11]} 40. Bxf7 {[%clk 0:00:06]}  Qa7 {[%clk 0:00:05]} 41. Bd5 {[%clk 0:00:07]}  Bf6 {[%clk 0:00:05]} 42. Kf3 {[%clk 0:00:07]}  Qe7 {[%clk 0:00:05]} 43. Kg2 {[%clk 0:00:07]}  Qd6 {[%clk 0:00:05]} 44. Bg8 {[%clk 0:00:07]}  Qe7 {[%clk 0:00:03]} 45. Bd5 {[%clk 0:00:07]}  Qd6 {[%clk 0:00:04]} 46. Bg8 {[%clk 0:00:07]}  Qf8 {[%clk 0:00:03]} 47. Bd5 {[%clk 0:00:07]}  Be7 {[%clk 0:00:04]} 48. Be6 {[%clk 0:00:07]}  Bd6 {[%clk 0:00:03]} 49. Bd5 {[%clk 0:00:07]}  Qe7 {[%clk 0:00:03]} 50. Be6 {[%clk 0:00:08]}  Kf6 {[%clk 0:00:04]} 51. Bg8 {[%clk 0:00:08]}  Qf8 {[%clk 0:00:04]} 52. Bd5 {[%clk 0:00:08]}  Qd8 {[%clk 0:00:03]} 53. Bf7 {[%clk 0:00:08]}  Be7 {[%clk 0:00:03]} 54. Qe6+ {[%clk 0:00:08]}  Kg7 {[%clk 0:00:01]} 55. Qc4 {[%clk 0:00:09]}  Kf8 {[%clk 0:00:01]} 56. Be6 {[%clk 0:00:09]}  Kg7 {[%clk 0:00:01]} 57. Bd5 {[%clk 0:00:10]}  Bf6 {[%clk 0:00:02]} 58. Bf7 {[%clk 0:00:10]}  Qe7 {[%clk 0:00:02]} 59. Be6 {[%clk 0:00:10]}  Qd8 {[%clk 0:00:02]} 60. Bf7 {[%clk 0:00:10]}  Qa8+ {[%clk 0:00:02]} 61. Bd5 {[%clk 0:00:10]}  Qd8 {[%clk 0:00:03]} 62. Be6 {[%clk 0:00:09]}  Qe7 {[%clk 0:00:03]} 63. Bf7 {[%clk 0:00:09]}  Qd8 {[%clk 0:00:03]} 64. Bd5 {[%clk 0:00:09]}  Qe7 {[%clk 0:00:03]} 65. Kf3 {[%clk 0:00:09]}  Qd8 {[%clk 0:00:02]} 66. Bc6 {[%clk 0:00:09]}  Qe7 {[%clk 0:00:02]} 67. Bd5 {[%clk 0:00:09]}  Qd6 {[%clk 0:00:02]} 68. Qc6 {[%clk 0:00:09]}  Qxc6 {[%clk 0:00:02]} 69. bxc6 {[%clk 0:00:09]}  Bd8 {[%clk 0:00:02]} 70. e4 {[%clk 0:00:08]}  Kf6 {[%clk 0:00:01]} 71. e5+ {[%clk 0:00:08]}  Ke7 {[%clk 0:00:02]} 72. Bb3 {[%clk 0:00:07]}  Bc7 {[%clk 0:00:03]} 73. Kf4 {[%clk 0:00:07]}  b5 {[%clk 0:00:03]} 74. d5 {[%clk 0:00:07]}  b4 {[%clk 0:00:03]} 75. d6+ {[%clk 0:00:08]}  Bxd6 {[%clk 0:00:04]} 76. exd6+ {[%clk 0:00:09]}  Kxd6 {[%clk 0:00:05]} 77. Kg5 {[%clk 0:00:09]}  Kxc6 {[%clk 0:00:06]} 78. Kxg6 {[%clk 0:00:09]}  Kc5 {[%clk 0:00:07]} 79. Kxh5 {[%clk 0:00:09]}  Kd4 {[%clk 0:00:07]} 80. Kg6 {[%clk 0:00:10]}  Kc3 {[%clk 0:00:08]} 81. Be6 {[%clk 0:00:10]}  b3 {[%clk 0:00:09]} 82. Bxb3 {[%clk 0:00:10]}  Kxb3 {[%clk 0:00:09]} 83. h5 {[%clk 0:00:11]}  a2 {[%clk 0:00:10]} 84. h6 {[%clk 0:00:11]}  a1=Q {[%clk 0:00:11]} 85. Kxf5 {[%clk 0:00:07]}  Qh8 {[%clk 0:00:09]} 86. Kg6 {[%clk 0:00:07]}  Qg8+ {[%clk 0:00:09]} 87. Kh5 {[%clk 0:00:06]}  Qf7+ {[%clk 0:00:09]} 88. Kg5 {[%clk 0:00:06]}  Kc4 {[%clk 0:00:06]} 89. f4 {[%clk 0:00:05]}  Kd5 {[%clk 0:00:07]} 90. g4 {[%clk 0:00:05]}  Ke4 {[%clk 0:00:07]} 91. f5 {[%clk 0:00:05]}  Kf3 {[%clk 0:00:07]} 92. Kh4 {[%clk 0:00:05]}  Kf4 {[%clk 0:00:07]} 93. Kh3 {[%clk 0:00:02]}  Kg5 {[%clk 0:00:06]} 94. Kg3 {[%clk 0:00:02]}  Kxh6 {[%clk 0:00:06]} 0-1


[Site "https://www.chess.com"]

[Event "Titled Tuesday Blitz March 14 Early 2023"]
[White "Botez, Alexandra"]
[Black "Senft, Sean"]
[WhiteFideId "2603365"]
[BlackFideId "2044960"]
[WhiteElo "2059"]
[BlackElo "1989"]
[Result "1-0"]
[Round "08"]
[TimeControl "180+2"]
[Date "2023.03.14"]
[WhiteClock "0:00:04"]
[BlackClock "0:00:02"]

1. d4 {[%clk 0:03:00]}  d5 {[%clk 0:02:58]} 2. Nf3 {[%clk 0:02:58]}  c6 {[%clk 0:02:59]} 3. g3 {[%clk 0:02:57]}  Nf6 {[%clk 0:02:59]} 4. Bg2 {[%clk 0:02:57]}  Bf5 {[%clk 0:02:59]} 5. O-O {[%clk 0:02:56]}  e6 {[%clk 0:03:00]} 6. c4 {[%clk 0:02:56]}  Nbd7 {[%clk 0:02:59]} 7. Nbd2 {[%clk 0:02:53]}  Be7 {[%clk 0:03:00]} 8. b3 {[%clk 0:02:46]}  O-O {[%clk 0:03:00]} 9. Bb2 {[%clk 0:02:46]}  Ne4 {[%clk 0:03:00]} 10. Nxe4 {[%clk 0:02:38]}  Bxe4 {[%clk 0:03:00]} 11. Nd2 {[%clk 0:02:26]}  Bxg2 {[%clk 0:03:00]} 12. Kxg2 {[%clk 0:02:27]}  h5 {[%clk 0:02:48]} 13. f4 {[%clk 0:02:23]}  h4 {[%clk 0:02:42]} 14. Nf3 {[%clk 0:02:22]}  f5 {[%clk 0:02:35]} 15. e3 {[%clk 0:02:16]}  Kf7 {[%clk 0:02:11]} 16. Nxh4 {[%clk 0:02:07]}  Rh8 {[%clk 0:01:48]} 17. Nf3 {[%clk 0:02:04]}  Kg8 {[%clk 0:01:37]} 18. h4 {[%clk 0:02:01]}  Nf6 {[%clk 0:01:34]} 19. Ng5 {[%clk 0:01:54]}  Ne4 {[%clk 0:01:29]} 20. Nxe6 {[%clk 0:01:39]}  Qd7 {[%clk 0:01:18]} 21. Ng5 {[%clk 0:01:39]}  Bxg5 {[%clk 0:01:16]} 22. fxg5 {[%clk 0:01:35]}  Rf8 {[%clk 0:00:37]} 23. Ba3 {[%clk 0:01:29]}  Rf7 {[%clk 0:00:32]} 24. Rf3 {[%clk 0:01:25]}  g6 {[%clk 0:00:25]} 25. Qe2 {[%clk 0:01:22]}  Rfh7 {[%clk 0:00:24]} 26. cxd5 {[%clk 0:01:17]}  cxd5 {[%clk 0:00:16]} 27. Rc1 {[%clk 0:01:17]}  Nxg3 {[%clk 0:00:14]} 28. Rxg3 {[%clk 0:01:05]}  Rxh4 {[%clk 0:00:14]} 29. Kf3 {[%clk 0:01:00]}  Qe6 {[%clk 0:00:07]} 30. Qd3 {[%clk 0:00:55]}  Rh2 {[%clk 0:00:07]} 31. Rcg1 {[%clk 0:00:16]}  R8h4 {[%clk 0:00:07]} 32. R1g2 {[%clk 0:00:16]}  Rh1 {[%clk 0:00:05]} 33. Qc2 {[%clk 0:00:13]}  Re4 {[%clk 0:00:03]} 34. Qf2 {[%clk 0:00:11]}  Rd1 {[%clk 0:00:02]} 35. Rh2 {[%clk 0:00:04]} 1-0


[Site "https://www.chess.com"]

[Event "Titled Tuesday Blitz March 14 Early 2023"]
[White "Bochnicka, Vladimir"]
[Black "Larina, Maria"]
[WhiteFideId "14943450"]
[BlackFideId "24113182"]
[WhiteElo "2094"]
[BlackElo "1848"]
[Result "1-0"]
[Round "08"]
[TimeControl "180+2"]
[Date "2023.03.14"]
[WhiteClock "0:01:33"]
[BlackClock "0:01:34"]

1. e4 {[%clk 0:03:00]}  c6 {[%clk 0:02:42]} 2. d4 {[%clk 0:03:00]}  d5 {[%clk 0:02:42]} 3. e5 {[%clk 0:03:00]}  Bf5 {[%clk 0:02:42]} 4. h4 {[%clk 0:03:01]}  h5 {[%clk 0:02:42]} 5. c4 {[%clk 0:02:59]}  e6 {[%clk 0:02:42]} 6. cxd5 {[%clk 0:02:59]}  cxd5 {[%clk 0:02:41]} 7. Nc3 {[%clk 0:03:00]}  Nc6 {[%clk 0:02:41]} 8. Nf3 {[%clk 0:02:57]}  Qb6 {[%clk 0:02:38]} 9. Bd3 {[%clk 0:02:55]}  Bxd3 {[%clk 0:02:35]} 10. Qxd3 {[%clk 0:02:56]}  Nb4 {[%clk 0:02:31]} 11. Qd2 {[%clk 0:02:52]}  Ne7 {[%clk 0:02:22]} 12. O-O {[%clk 0:02:47]}  Nf5 {[%clk 0:02:20]} 13. a3 {[%clk 0:02:33]}  Nc6 {[%clk 0:02:19]} 14. Rd1 {[%clk 0:02:33]}  Be7 {[%clk 0:02:17]} 15. g3 {[%clk 0:02:33]}  Rc8 {[%clk 0:02:13]} 16. Qd3 {[%clk 0:02:32]}  Na5 {[%clk 0:02:05]} 17. Nxd5 {[%clk 0:02:29]}  exd5 {[%clk 0:01:57]} 18. Qxf5 {[%clk 0:02:29]}  Nb3 {[%clk 0:01:55]} 19. Qxc8+ {[%clk 0:02:30]}  Bd8 {[%clk 0:01:54]} 20. Bg5 {[%clk 0:02:17]}  f6 {[%clk 0:01:45]} 21. exf6 {[%clk 0:02:13]}  gxf6 {[%clk 0:01:46]} 22. Re1+ {[%clk 0:02:10]}  Kf7 {[%clk 0:01:44]} 23. Qd7+ {[%clk 0:02:10]}  Kg6 {[%clk 0:01:42]} 24. Re6 {[%clk 0:02:00]}  Rf8 {[%clk 0:01:42]} 25. Ne5+ {[%clk 0:01:56]}  Kf5 {[%clk 0:01:38]} 26. Rxb6+ {[%clk 0:01:56]}  Ke4 {[%clk 0:01:37]} 27. Rd1 {[%clk 0:01:49]}  Nxd4 {[%clk 0:01:35]} 28. Rxd4+ {[%clk 0:01:45]}  Kxd4 {[%clk 0:01:35]} 29. Nf3+ {[%clk 0:01:44]}  Ke4 {[%clk 0:01:35]} 30. Qe6+ {[%clk 0:01:32]}  Kxf3 {[%clk 0:01:34]} 31. Rb3# {[%clk 0:01:33]} 1-0


[Site "https://www.chess.com"]

[Event "Titled Tuesday Blitz March 14 Early 2023"]
[White "Bilan, Danila"]
[Black "Fajdetic, Hrvoje"]
[WhiteFideId "24161918"]
[BlackFideId "14501945"]
[WhiteElo "2182"]
[BlackElo "2185"]
[Result "0-1"]
[Round "08"]
[TimeControl "180+2"]
[Date "2023.03.14"]
[WhiteClock "0:00:01"]
[BlackClock "0:00:16"]

1. d4 {[%clk 0:03:00]}  e6 {[%clk 0:02:55]} 2. Nf3 {[%clk 0:03:00]}  f5 {[%clk 0:02:56]} 3. g3 {[%clk 0:03:00]}  Nf6 {[%clk 0:02:56]} 4. Bg2 {[%clk 0:03:00]}  d5 {[%clk 0:02:57]} 5. O-O {[%clk 0:03:01]}  c6 {[%clk 0:02:57]} 6. c4 {[%clk 0:03:02]}  Bd6 {[%clk 0:02:58]} 7. Nc3 {[%clk 0:03:01]}  O-O {[%clk 0:02:58]} 8. Bf4 {[%clk 0:03:01]}  Ne4 {[%clk 0:02:57]} 9. Ne5 {[%clk 0:03:01]}  b6 {[%clk 0:02:56]} 10. f3 {[%clk 0:02:56]}  Nxc3 {[%clk 0:02:56]} 11. bxc3 {[%clk 0:02:57]}  Bb7 {[%clk 0:02:55]} 12. e4 {[%clk 0:02:55]}  g5 {[%clk 0:02:34]} 13. Bd2 {[%clk 0:02:31]}  Bxe5 {[%clk 0:02:26]} 14. dxe5 {[%clk 0:02:30]}  dxc4 {[%clk 0:02:26]} 15. exf5 {[%clk 0:02:21]}  exf5 {[%clk 0:02:13]} 16. Qe2 {[%clk 0:01:55]}  b5 {[%clk 0:02:07]} 17. Rad1 {[%clk 0:01:23]}  Qe7 {[%clk 0:02:03]} 18. f4 {[%clk 0:01:18]}  g4 {[%clk 0:02:03]} 19. Be3 {[%clk 0:01:09]}  Na6 {[%clk 0:02:00]} 20. Rd6 {[%clk 0:00:56]}  Nc7 {[%clk 0:01:50]} 21. Bc5 {[%clk 0:00:49]}  Ne6 {[%clk 0:01:28]} 22. Ba3 {[%clk 0:00:34]}  Rae8 {[%clk 0:01:00]} 23. Rfd1 {[%clk 0:00:33]}  Qc7 {[%clk 0:00:56]} 24. Kh1 {[%clk 0:00:07]}  Qb6 {[%clk 0:00:54]} 25. Qc2 {[%clk 0:00:06]}  Nc5 {[%clk 0:00:47]} 26. Qf2 {[%clk 0:00:04]}  Nd3 {[%clk 0:00:41]} 27. Qxb6 {[%clk 0:00:02]}  axb6 {[%clk 0:00:42]} 28. R1xd3 {[%clk 0:00:02]}  cxd3 {[%clk 0:00:42]} 29. Rxd3 {[%clk 0:00:03]}  Rf7 {[%clk 0:00:38]} 30. Bd6 {[%clk 0:00:04]}  c5 {[%clk 0:00:36]} 31. Kg1 {[%clk 0:00:04]}  Bxg2 {[%clk 0:00:36]} 32. Kxg2 {[%clk 0:00:05]}  Ra7 {[%clk 0:00:32]} 33. Kf2 {[%clk 0:00:03]}  Rxa2+ {[%clk 0:00:32]} 34. Ke3 {[%clk 0:00:03]}  Ra3 {[%clk 0:00:31]} 35. Bc7 {[%clk 0:00:04]}  b4 {[%clk 0:00:31]} 36. Bxb6 {[%clk 0:00:01]}  c4 {[%clk 0:00:29]} 37. Rd7 {[%clk 0:00:01]}  Rxc3+ {[%clk 0:00:28]} 38. Ke2 {[%clk 0:00:02]}  Ra8 {[%clk 0:00:27]} 39. e6 {[%clk 0:00:01]}  Ra2+ {[%clk 0:00:26]} 40. Kd1 {[%clk 0:00:02]}  Rd3+ {[%clk 0:00:24]} 41. Rxd3 {[%clk 0:00:02]}  cxd3 {[%clk 0:00:25]} 42. Bd4 {[%clk 0:00:02]}  Re2 {[%clk 0:00:24]} 43. Be5 {[%clk 0:00:01]}  b3 {[%clk 0:00:19]} 44. Kc1 {[%clk 0:00:01]}  Kf8 {[%clk 0:00:16]} 0-1


[Site "https://www.chess.com"]

[Event "Titled Tuesday Blitz March 14 Early 2023"]
[White "Shevtchenko, Olesya"]
[Black "Smith, Garrett L"]
[WhiteFideId "24131890"]
[BlackFideId "2024829"]
[WhiteElo "2003"]
[BlackElo "2265"]
[Result "1-0"]
[Round "08"]
[TimeControl "180+2"]
[Date "2023.03.14"]
[WhiteClock "0:01:13"]
[BlackClock "0:00:55"]

1. e4 {[%clk 0:02:59]}  c5 {[%clk 0:03:00]} 2. Nf3 {[%clk 0:02:58]}  Nc6 {[%clk 0:03:00]} 3. d4 {[%clk 0:02:59]}  cxd4 {[%clk 0:03:01]} 4. Nxd4 {[%clk 0:03:00]}  e5 {[%clk 0:03:01]} 5. Nb5 {[%clk 0:02:59]}  d6 {[%clk 0:03:01]} 6. N1c3 {[%clk 0:02:52]}  a6 {[%clk 0:03:01]} 7. Na3 {[%clk 0:02:52]}  Be7 {[%clk 0:03:01]} 8. Nd5 {[%clk 0:02:52]}  Nf6 {[%clk 0:03:02]} 9. Bd3 {[%clk 0:02:52]}  Nxd5 {[%clk 0:03:02]} 10. exd5 {[%clk 0:02:52]}  Qa5+ {[%clk 0:03:02]} 11. c3 {[%clk 0:02:47]}  Qxd5 {[%clk 0:03:03]} 12. O-O {[%clk 0:02:47]}  e4 {[%clk 0:03:03]} 13. Bc4 {[%clk 0:02:43]}  Qf5 {[%clk 0:03:04]} 14. Be3 {[%clk 0:02:39]}  Be6 {[%clk 0:02:58]} 15. f3 {[%clk 0:02:37]}  O-O {[%clk 0:02:52]} 16. Bxe6 {[%clk 0:02:28]}  Qxe6 {[%clk 0:02:51]} 17. Nc2 {[%clk 0:02:27]}  Rfe8 {[%clk 0:02:44]} 18. Nd4 {[%clk 0:02:26]}  Nxd4 {[%clk 0:02:43]} 19. Bxd4 {[%clk 0:02:26]}  d5 {[%clk 0:02:37]} 20. Qb3 {[%clk 0:02:16]}  b5 {[%clk 0:01:53]} 21. fxe4 {[%clk 0:02:14]}  dxe4 {[%clk 0:01:39]} 22. Qxe6 {[%clk 0:02:13]}  fxe6 {[%clk 0:01:40]} 23. Rae1 {[%clk 0:02:11]}  Bd6 {[%clk 0:01:25]} 24. Rxe4 {[%clk 0:02:11]}  Re7 {[%clk 0:01:25]} 25. Rfe1 {[%clk 0:02:07]}  Rae8 {[%clk 0:01:25]} 26. Be5 {[%clk 0:02:07]}  Bxe5 {[%clk 0:01:22]} 27. Rxe5 {[%clk 0:02:08]}  g6 {[%clk 0:01:21]} 28. g4 {[%clk 0:02:07]}  Kg7 {[%clk 0:01:22]} 29. Kg2 {[%clk 0:02:07]}  h6 {[%clk 0:01:22]} 30. h4 {[%clk 0:02:06]}  Kf6 {[%clk 0:01:21]} 31. g5+ {[%clk 0:02:04]}  hxg5 {[%clk 0:01:19]} 32. hxg5+ {[%clk 0:02:05]}  Kg7 {[%clk 0:01:19]} 33. Kg3 {[%clk 0:02:03]}  Kf7 {[%clk 0:01:19]} 34. Rf1+ {[%clk 0:02:03]}  Kg7 {[%clk 0:01:19]} 35. Rd1 {[%clk 0:01:46]}  Kf7 {[%clk 0:01:18]} 36. Rd6 {[%clk 0:01:45]}  Ra8 {[%clk 0:01:18]} 37. Kf4 {[%clk 0:01:43]}  Raa7 {[%clk 0:01:17]} 38. Rc5 {[%clk 0:01:40]}  Ra8 {[%clk 0:01:13]} 39. a3 {[%clk 0:01:34]}  Raa7 {[%clk 0:01:11]} 40. Ke5 {[%clk 0:01:33]}  Rac7 {[%clk 0:00:59]} 41. Rdc6 {[%clk 0:01:20]}  Ra7 {[%clk 0:00:56]} 42. Rb6 {[%clk 0:01:15]}  Re8 {[%clk 0:00:54]} 43. Rcc6 {[%clk 0:01:15]}  Ree7 {[%clk 0:00:54]} 44. Rxe6 {[%clk 0:01:15]}  Re8 {[%clk 0:00:55]} 45. Rxe8 {[%clk 0:01:13]} 1-0


[Site "https://www.chess.com"]

[Event "Titled Tuesday Blitz March 14 Early 2023"]
[White "Quirke, Jeffrey"]
[Black "Kraus, Tomas"]
[WhiteFideId "2013029"]
[BlackFideId "331708"]
[WhiteElo "2212"]
[BlackElo "2389"]
[Result "1-0"]
[Round "08"]
[TimeControl "180+2"]
[Date "2023.03.14"]
[WhiteClock "0:00:07"]
[BlackClock "0:00:08"]

1. e4 {[%clk 0:03:00]}  c5 {[%clk 0:02:58]} 2. Nc3 {[%clk 0:03:00]}  e6 {[%clk 0:02:59]} 3. Nge2 {[%clk 0:02:57]}  Nc6 {[%clk 0:02:58]} 4. g3 {[%clk 0:02:55]}  g6 {[%clk 0:02:56]} 5. d4 {[%clk 0:02:37]}  cxd4 {[%clk 0:02:51]} 6. Nxd4 {[%clk 0:02:37]}  Bg7 {[%clk 0:02:52]} 7. Be3 {[%clk 0:02:37]}  Nge7 {[%clk 0:02:52]} 8. Bg2 {[%clk 0:02:34]}  O-O {[%clk 0:02:51]} 9. O-O {[%clk 0:02:33]}  d5 {[%clk 0:02:41]} 10. exd5 {[%clk 0:02:28]}  Nxd5 {[%clk 0:02:40]} 11. Nxd5 {[%clk 0:02:27]}  exd5 {[%clk 0:02:41]} 12. c4 {[%clk 0:02:02]}  dxc4 {[%clk 0:02:19]} 13. Nxc6 {[%clk 0:02:02]}  bxc6 {[%clk 0:02:18]} 14. Qxd8 {[%clk 0:01:56]}  Rxd8 {[%clk 0:02:16]} 15. Bxc6 {[%clk 0:01:56]}  Rb8 {[%clk 0:01:56]} 16. Bxa7 {[%clk 0:01:54]}  Rxb2 {[%clk 0:01:52]} 17. a4 {[%clk 0:01:39]}  c3 {[%clk 0:01:48]} 18. Be4 {[%clk 0:01:25]}  Ba6 {[%clk 0:01:34]} 19. Rfc1 {[%clk 0:00:54]}  Bd4 {[%clk 0:01:03]} 20. Bxd4 {[%clk 0:00:53]}  Rxd4 {[%clk 0:01:01]} 21. Bf3 {[%clk 0:00:18]}  Rdd2 {[%clk 0:00:58]} 22. Rxc3 {[%clk 0:00:17]}  Rxf2 {[%clk 0:00:53]} 23. h4 {[%clk 0:00:12]}  h5 {[%clk 0:00:36]} 24. a5 {[%clk 0:00:11]}  Kg7 {[%clk 0:00:32]} 25. Rd1 {[%clk 0:00:08]}  Be2 {[%clk 0:00:19]} 26. Bxe2 {[%clk 0:00:05]}  Rfxe2 {[%clk 0:00:17]} 27. Ra1 {[%clk 0:00:05]}  Rg2+ {[%clk 0:00:16]} 28. Kh1 {[%clk 0:00:05]}  Rh2+ {[%clk 0:00:16]} 29. Kg1 {[%clk 0:00:05]}  Rbg2+ {[%clk 0:00:15]} 30. Kf1 {[%clk 0:00:05]}  Rb2 {[%clk 0:00:15]} 31. Kg1 {[%clk 0:00:05]}  Rhg2+ {[%clk 0:00:14]} 32. Kh1 {[%clk 0:00:05]}  Rgc2 {[%clk 0:00:14]} 33. Rxc2 {[%clk 0:00:05]}  Rxc2 {[%clk 0:00:15]} 34. a6 {[%clk 0:00:05]}  Rc8 {[%clk 0:00:15]} 35. a7 {[%clk 0:00:06]}  Ra8 {[%clk 0:00:16]} 36. Kg2 {[%clk 0:00:06]}  Kf6 {[%clk 0:00:16]} 37. Kf3 {[%clk 0:00:07]}  Ke6 {[%clk 0:00:17]} 38. Ke4 {[%clk 0:00:07]}  Kd6 {[%clk 0:00:12]} 39. Ra6+ {[%clk 0:00:07]}  Kc5 {[%clk 0:00:09]} 40. Ke5 {[%clk 0:00:07]}  Kb5 {[%clk 0:00:08]} 41. Ra1 {[%clk 0:00:07]} 1-0


[Site "https://www.chess.com"]

[Event "Titled Tuesday Blitz March 14 Early 2023"]
[White "Kiseleva, Arina"]
[Black "Matveeva, Olga"]
[WhiteFideId "4164989"]
[BlackFideId "24107018"]
[WhiteElo "1756"]
[BlackElo "2056"]
[Result "0-1"]
[Round "08"]
[TimeControl "180+2"]
[Date "2023.03.14"]
[WhiteClock "0:00:03"]
[BlackClock "0:00:21"]

1. d4 {[%clk 0:03:00]}  d5 {[%clk 0:02:59]} 2. Nf3 {[%clk 0:03:00]}  Nf6 {[%clk 0:02:58]} 3. e3 {[%clk 0:03:00]}  e6 {[%clk 0:02:58]} 4. Bd3 {[%clk 0:02:59]}  c5 {[%clk 0:02:57]} 5. O-O {[%clk 0:02:54]}  Nc6 {[%clk 0:02:57]} 6. b3 {[%clk 0:02:53]}  Be7 {[%clk 0:02:56]} 7. Bb2 {[%clk 0:02:53]}  O-O {[%clk 0:02:57]} 8. Ne5 {[%clk 0:02:47]}  Qc7 {[%clk 0:02:38]} 9. Nxc6 {[%clk 0:02:40]}  bxc6 {[%clk 0:02:36]} 10. dxc5 {[%clk 0:02:40]}  e5 {[%clk 0:02:23]} 11. b4 {[%clk 0:02:19]}  a5 {[%clk 0:02:20]} 12. a3 {[%clk 0:02:17]}  e4 {[%clk 0:02:14]} 13. Be2 {[%clk 0:02:15]}  Re8 {[%clk 0:02:00]} 14. Qd4 {[%clk 0:02:10]}  Bf8 {[%clk 0:01:48]} 15. Nd2 {[%clk 0:02:10]}  Ng4 {[%clk 0:01:44]} 16. Bxg4 {[%clk 0:01:57]}  Bxg4 {[%clk 0:01:45]} 17. c4 {[%clk 0:01:44]}  Rad8 {[%clk 0:01:39]} 18. Qc3 {[%clk 0:01:33]}  Qe7 {[%clk 0:01:20]} 19. cxd5 {[%clk 0:01:27]}  Rxd5 {[%clk 0:01:18]} 20. Nc4 {[%clk 0:01:20]}  Qh4 {[%clk 0:01:17]} 21. f3 {[%clk 0:00:20]}  exf3 {[%clk 0:01:15]} 22. gxf3 {[%clk 0:00:18]}  Rh5 {[%clk 0:01:11]} 23. Rf2 {[%clk 0:00:16]}  Bxf3 {[%clk 0:00:56]} 24. e4 {[%clk 0:00:13]}  Bxe4 {[%clk 0:00:40]} 25. Nd6 {[%clk 0:00:09]}  Rg5+ {[%clk 0:00:38]} 26. Kf1 {[%clk 0:00:08]}  Rd8 {[%clk 0:00:28]} 27. Nxe4 {[%clk 0:00:07]}  Qxe4 {[%clk 0:00:29]} 28. Re1 {[%clk 0:00:05]}  Qh1+ {[%clk 0:00:27]} 29. Ke2 {[%clk 0:00:06]}  Re8+ {[%clk 0:00:24]} 30. Kd3 {[%clk 0:00:03]}  Qxe1 {[%clk 0:00:21]} 0-1


[Site "https://www.chess.com"]